[Event "December 5 Early 2023"]
[Site "https://www.chess.com"]
[Date "2023.12.05"]
[Round "9"]
[White "Lehtosaari, Mauri"]
[Black "Shubenkova, Veronika"]
[Result "0-1"]
[Board "84"]
[TimeControl "180+1"]
[WhiteFideId "501999"]
[BlackFideId "44124040"]
[WhiteElo "2488"]
[BlackElo "2585"]
[WhiteTeam "FIN"]
[BlackTeam "RUS"]
[WhiteClock "0:00:02"]
[BlackClock "0:00:06"]

1. d4 {[%clk 0:03:00]}  d5 {[%clk 0:02:55]} 2. Nf3 {[%clk 0:02:59]}  e6 {[%clk 0:02:55]} 3. c3 {[%clk 0:02:58]}  f5 {[%clk 0:02:55]} 4. Bg5 {[%clk 0:02:56]}  Nf6 {[%clk 0:02:56]} 5. Nbd2 {[%clk 0:02:55]}  Be7 {[%clk 0:02:56]} 6. e3 {[%clk 0:02:56]}  Ne4 {[%clk 0:02:56]} 7. Bxe7 {[%clk 0:02:55]}  Qxe7 {[%clk 0:02:57]} 8. Ne5 {[%clk 0:02:55]}  O-O {[%clk 0:02:56]} 9. Ndf3 {[%clk 0:02:54]}  Bd7 {[%clk 0:02:53]} 10. Bd3 {[%clk 0:02:51]}  Be8 {[%clk 0:02:53]} 11. Qb3 {[%clk 0:02:35]}  c6 {[%clk 0:02:49]} 12. O-O {[%clk 0:02:24]}  Nd6 {[%clk 0:02:47]} 13. c4 {[%clk 0:02:23]}  Nd7 {[%clk 0:02:43]} 14. cxd5 {[%clk 0:02:21]}  exd5 {[%clk 0:02:37]} 15. Nxd7 {[%clk 0:02:17]}  Bxd7 {[%clk 0:02:33]} 16. Ne5 {[%clk 0:02:17]}  Be6 {[%clk 0:02:34]} 17. f4 {[%clk 0:02:13]}  Rab8 {[%clk 0:02:22]} 18. Qa3 {[%clk 0:02:07]}  a6 {[%clk 0:02:21]} 19. Rac1 {[%clk 0:02:02]}  Qd8 {[%clk 0:02:20]} 20. h3 {[%clk 0:01:51]}  Ne4 {[%clk 0:02:17]} 21. Bxe4 {[%clk 0:01:44]}  fxe4 {[%clk 0:02:18]} 22. Kh2 {[%clk 0:01:44]}  Rf6 {[%clk 0:02:05]} 23. Qc3 {[%clk 0:01:27]}  Qe8 {[%clk 0:01:34]} 24. g4 {[%clk 0:01:17]}  Rh6 {[%clk 0:01:08]} 25. f5 {[%clk 0:01:15]}  Bd7 {[%clk 0:01:03]} 26. Qe1 {[%clk 0:01:05]}  Qe7 {[%clk 0:01:00]} 27. Qg3 {[%clk 0:01:01]}  Rf8 {[%clk 0:00:56]} 28. a3 {[%clk 0:00:58]}  Bc8 {[%clk 0:00:50]} 29. Rf2 {[%clk 0:00:58]}  Rhf6 {[%clk 0:00:44]} 30. Rcf1 {[%clk 0:00:51]}  Qd8 {[%clk 0:00:33]} 31. b4 {[%clk 0:00:40]}  a5 {[%clk 0:00:31]} 32. Rb1 {[%clk 0:00:13]}  axb4 {[%clk 0:00:29]} 33. axb4 {[%clk 0:00:13]}  Qb6 {[%clk 0:00:29]} 34. Qg2 {[%clk 0:00:12]}  Qc7 {[%clk 0:00:28]} 35. Kh1 {[%clk 0:00:12]}  g6 {[%clk 0:00:25]} 36. Rg1 {[%clk 0:00:10]}  Kh8 {[%clk 0:00:23]} 37. Rgf1 {[%clk 0:00:06]}  gxf5 {[%clk 0:00:20]} 38. g5 {[%clk 0:00:06]}  Rd6 {[%clk 0:00:19]} 39. h4 {[%clk 0:00:06]}  Qg7 {[%clk 0:00:18]} 40. Qg3 {[%clk 0:00:06]}  Rdd8 {[%clk 0:00:14]} 41. Qf4 {[%clk 0:00:07]}  Be6 {[%clk 0:00:14]} 42. Rh2 {[%clk 0:00:07]}  Qe7 {[%clk 0:00:13]} 43. Rg1 {[%clk 0:00:08]}  Rg8 {[%clk 0:00:10]} 44. h5 {[%clk 0:00:09]}  Kg7 {[%clk 0:00:10]} 45. g6 {[%clk 0:00:09]}  h6 {[%clk 0:00:09]} 46. Rf2 {[%clk 0:00:07]}  Qf6 {[%clk 0:00:07]} 47. Rb2 {[%clk 0:00:05]}  Ra8 {[%clk 0:00:07]} 48. Rgg2 {[%clk 0:00:05]}  Ra3 {[%clk 0:00:07]} 49. Kh2 {[%clk 0:00:06]}  Rga8 {[%clk 0:00:06]} 50. b5 {[%clk 0:00:06]}  c5 {[%clk 0:00:07]} 51. dxc5 {[%clk 0:00:06]}  Rc8 {[%clk 0:00:07]} 52. c6 {[%clk 0:00:06]}  bxc6 {[%clk 0:00:07]} 53. bxc6 {[%clk 0:00:07]}  Ra7 {[%clk 0:00:06]} 54. Rb7+ {[%clk 0:00:07]}  Rc7 {[%clk 0:00:07]} 55. Rxa7 {[%clk 0:00:07]}  Rxa7 {[%clk 0:00:07]} 56. Rc2 {[%clk 0:00:05]}  Rc7 {[%clk 0:00:07]} 57. Ng4 {[%clk 0:00:05]}  fxg4 {[%clk 0:00:06]} 58. Kg2 {[%clk 0:00:06]}  Rc8 {[%clk 0:00:05]} 59. Qxf6+ {[%clk 0:00:05]}  Kxf6 {[%clk 0:00:05]} 60. Kg3 {[%clk 0:00:06]}  Ke5 {[%clk 0:00:05]} 61. Rf2 {[%clk 0:00:04]}  Rc7 {[%clk 0:00:05]} 62. Rf8 {[%clk 0:00:03]}  d4 {[%clk 0:00:05]} 63. exd4+ {[%clk 0:00:03]}  Kxd4 {[%clk 0:00:06]} 64. Re8 {[%clk 0:00:03]}  Ke5 {[%clk 0:00:06]} 65. g7 {[%clk 0:00:03]}  Rxg7 {[%clk 0:00:06]} 66. Re7 {[%clk 0:00:02]}  Rxe7 {[%clk 0:00:06]} 0-1

[Event "December 5 Early 2023"]
[Site "https://www.chess.com"]
[Date "2023.12.05"]
[Round "9"]
[White "Iljin, Timofey"]
[Black "Malyi, Viacheslav"]
[Result "1-0"]
[Board "87"]
[TimeControl "180+1"]
[WhiteFideId "14110180"]
[BlackFideId "14123983"]
[WhiteElo "2474"]
[BlackElo "2575"]
[WhiteTeam "UKR"]
[BlackTeam "UKR"]
[WhiteClock "0:00:28"]
[BlackClock "0:00:10"]

1. e4 {[%clk 0:02:55]}  e5 {[%clk 0:02:59]} 2. Nf3 {[%clk 0:02:55]}  Nc6 {[%clk 0:02:51]} 3. d4 {[%clk 0:02:55]}  exd4 {[%clk 0:02:45]} 4. Bc4 {[%clk 0:02:54]}  Nf6 {[%clk 0:02:42]} 5. O-O {[%clk 0:02:54]}  Nxe4 {[%clk 0:02:42]} 6. Nc3 {[%clk 0:02:54]}  Nxc3 {[%clk 0:02:35]} 7. bxc3 {[%clk 0:02:53]}  d5 {[%clk 0:02:36]} 8. Bd3 {[%clk 0:02:46]}  Be7 {[%clk 0:02:33]} 9. cxd4 {[%clk 0:02:47]}  O-O {[%clk 0:02:33]} 10. h3 {[%clk 0:02:45]}  Bf6 {[%clk 0:02:32]} 11. c3 {[%clk 0:02:45]}  Be6 {[%clk 0:02:32]} 12. Bc2 {[%clk 0:02:37]}  g6 {[%clk 0:02:21]} 13. Re1 {[%clk 0:02:37]}  Re8 {[%clk 0:02:16]} 14. Rb1 {[%clk 0:02:36]}  Rb8 {[%clk 0:02:12]} 15. Qd3 {[%clk 0:02:32]}  Bf5 {[%clk 0:02:08]} 16. Rxe8+ {[%clk 0:02:26]}  Qxe8 {[%clk 0:02:09]} 17. Qd1 {[%clk 0:02:26]}  Bxc2 {[%clk 0:02:09]} 18. Qxc2 {[%clk 0:02:27]}  Qe4 {[%clk 0:02:08]} 19. Qxe4 {[%clk 0:02:24]}  dxe4 {[%clk 0:02:09]} 20. Nd2 {[%clk 0:02:25]}  Na5 {[%clk 0:01:45]} 21. Nxe4 {[%clk 0:02:23]}  Be7 {[%clk 0:01:46]} 22. Bf4 {[%clk 0:02:22]}  Rc8 {[%clk 0:01:42]} 23. Nd2 {[%clk 0:02:07]}  b6 {[%clk 0:01:38]} 24. Re1 {[%clk 0:02:06]}  Bf8 {[%clk 0:01:31]} 25. g4 {[%clk 0:01:45]}  f6 {[%clk 0:01:30]} 26. h4 {[%clk 0:01:43]}  Kf7 {[%clk 0:01:29]} 27. h5 {[%clk 0:01:42]}  c6 {[%clk 0:01:29]} 28. hxg6+ {[%clk 0:01:41]}  hxg6 {[%clk 0:01:29]} 29. Kg2 {[%clk 0:01:41]}  Re8 {[%clk 0:01:24]} 30. Rh1 {[%clk 0:01:38]}  Bg7 {[%clk 0:01:14]} 31. Kf3 {[%clk 0:01:34]}  b5 {[%clk 0:01:11]} 32. a4 {[%clk 0:01:25]}  a6 {[%clk 0:00:56]} 33. axb5 {[%clk 0:01:23]}  axb5 {[%clk 0:00:57]} 34. Ra1 {[%clk 0:01:23]}  Nb7 {[%clk 0:00:48]} 35. Ra7 {[%clk 0:01:22]}  Re7 {[%clk 0:00:47]} 36. Ne4 {[%clk 0:01:17]}  Bf8 {[%clk 0:00:43]} 37. g5 {[%clk 0:00:55]}  f5 {[%clk 0:00:41]} 38. Nf6 {[%clk 0:00:55]}  Ke6 {[%clk 0:00:40]} 39. Ra6 {[%clk 0:00:42]}  Nd8 {[%clk 0:00:33]} 40. Ra8 {[%clk 0:00:42]}  Rd7 {[%clk 0:00:21]} 41. Nxd7 {[%clk 0:00:41]}  Kxd7 {[%clk 0:00:22]} 42. Be5 {[%clk 0:00:33]}  Be7 {[%clk 0:00:15]} 43. Bf6 {[%clk 0:00:30]}  Ne6 {[%clk 0:00:10]} 44. Ra7+ {[%clk 0:00:28]} 1-0

[Event "December 5 Early 2023"]
[Site "https://www.chess.com"]
[Date "2023.12.05"]
[Round "9"]
[White "Yurasova, Daria"]
[Black "Yezhel, Valiantsin"]
[Result "0-1"]
[Board "88"]
[TimeControl "180+1"]
[WhiteFideId "34146919"]
[BlackFideId "13504983"]
[WhiteElo "2462"]
[BlackElo "2572"]
[WhiteTeam "RUS"]
[BlackTeam "FID"]
[WhiteClock "0:01:33"]
[BlackClock "0:00:29"]

1. d4 {[%clk 0:02:53]}  f5 {[%clk 0:02:59]} 2. Bg5 {[%clk 0:02:52]}  g6 {[%clk 0:02:58]} 3. h4 {[%clk 0:02:51]}  Nh6 {[%clk 0:02:59]} 4. h5 {[%clk 0:02:50]}  Nf7 {[%clk 0:02:59]} 5. Nf3 {[%clk 0:02:38]}  Bg7 {[%clk 0:02:56]} 6. c3 {[%clk 0:02:37]}  Nxg5 {[%clk 0:02:49]} 7. Nxg5 {[%clk 0:02:37]}  e6 {[%clk 0:02:49]} 8. Nf3 {[%clk 0:02:37]}  d6 {[%clk 0:02:45]} 9. Nbd2 {[%clk 0:02:34]}  Nc6 {[%clk 0:02:43]} 10. e3 {[%clk 0:02:35]}  Qe7 {[%clk 0:02:35]} 11. Bb5 {[%clk 0:02:34]}  Bd7 {[%clk 0:02:35]} 12. hxg6 {[%clk 0:02:32]}  hxg6 {[%clk 0:02:35]} 13. Rxh8+ {[%clk 0:02:33]}  Bxh8 {[%clk 0:02:36]} 14. Qe2 {[%clk 0:02:27]}  O-O-O {[%clk 0:02:33]} 15. O-O-O {[%clk 0:02:28]}  e5 {[%clk 0:02:23]} 16. d5 {[%clk 0:02:25]}  Nb8 {[%clk 0:02:23]} 17. Bxd7+ {[%clk 0:02:23]}  Nxd7 {[%clk 0:02:23]} 18. e4 {[%clk 0:02:23]}  Bf6 {[%clk 0:02:16]} 19. Rh1 {[%clk 0:02:21]}  Rh8 {[%clk 0:02:16]} 20. Rxh8+ {[%clk 0:02:20]}  Bxh8 {[%clk 0:02:17]} 21. Ne1 {[%clk 0:02:15]}  Qh4 {[%clk 0:02:13]} 22. Qf3 {[%clk 0:02:11]}  Qh7 {[%clk 0:01:48]} 23. Qh3 {[%clk 0:02:07]}  Qxh3 {[%clk 0:01:46]} 24. gxh3 {[%clk 0:02:08]}  Bf6 {[%clk 0:01:45]} 25. Kd1 {[%clk 0:02:05]}  Kd8 {[%clk 0:01:42]} 26. Ke2 {[%clk 0:02:05]}  Ke7 {[%clk 0:01:40]} 27. b4 {[%clk 0:02:04]}  Bg5 {[%clk 0:01:32]} 28. Nef3 {[%clk 0:02:03]}  Bf4 {[%clk 0:01:29]} 29. h4 {[%clk 0:02:01]}  Nf6 {[%clk 0:01:27]} 30. Ng5 {[%clk 0:01:55]}  Bxd2 {[%clk 0:01:15]} 31. Kxd2 {[%clk 0:01:55]}  fxe4 {[%clk 0:01:13]} 32. Ke2 {[%clk 0:01:54]}  Nxd5 {[%clk 0:01:10]} 33. Nxe4 {[%clk 0:01:54]}  Ke6 {[%clk 0:01:02]} 34. a3 {[%clk 0:01:47]}  Kf5 {[%clk 0:01:01]} 35. Ng3+ {[%clk 0:01:45]}  Kg4 {[%clk 0:00:59]} 36. c4 {[%clk 0:01:45]}  Nf4+ {[%clk 0:00:58]} 37. Ke3 {[%clk 0:01:44]}  Kxh4 {[%clk 0:00:52]} 38. Ne4 {[%clk 0:01:45]}  Kg4 {[%clk 0:00:47]} 39. Nf6+ {[%clk 0:01:45]}  Kf5 {[%clk 0:00:46]} 40. Ne8 {[%clk 0:01:45]}  Ne6 {[%clk 0:00:46]} 41. a4 {[%clk 0:01:41]}  g5 {[%clk 0:00:39]} 42. f3 {[%clk 0:01:41]}  Kg6 {[%clk 0:00:35]} 43. c5 {[%clk 0:01:35]}  dxc5 {[%clk 0:00:29]} 44. bxc5 {[%clk 0:01:35]}  Kf7 {[%clk 0:00:29]} 45. Nxc7 {[%clk 0:01:33]}  Nxc7 {[%clk 0:00:29]} 46. Ke4 {[%clk 0:01:33]}  Ke6 {[%clk 0:00:29]} 0-1

[Event "December 5 Early 2023"]
[Site "https://www.chess.com"]
[Date "2023.12.05"]
[Round "9"]
[White "Filipovic, Slobodan J"]
[Black "Tifferet, Shakked"]
[Result "0-1"]
[Board "89"]
[TimeControl "180+1"]
[WhiteFideId "939633"]
[BlackFideId "2811529"]
[WhiteElo "2456"]
[BlackElo "2557"]
[WhiteTeam "SRB"]
[BlackTeam "ISR"]
[WhiteClock "0:00:25"]
[BlackClock "0:00:39"]

1. c4 {[%clk 0:03:00]}  c5 {[%clk 0:02:58]} 2. Nc3 {[%clk 0:02:58]}  g6 {[%clk 0:02:57]} 3. g3 {[%clk 0:02:59]}  Bg7 {[%clk 0:02:57]} 4. Bg2 {[%clk 0:02:59]}  d6 {[%clk 0:02:57]} 5. d3 {[%clk 0:03:00]}  Nc6 {[%clk 0:02:57]} 6. Bf4 {[%clk 0:02:59]}  Bd7 {[%clk 0:02:56]} 7. Qd2 {[%clk 0:02:57]}  a6 {[%clk 0:02:52]} 8. h4 {[%clk 0:02:55]}  h5 {[%clk 0:02:45]} 9. Nf3 {[%clk 0:02:54]}  Rb8 {[%clk 0:02:44]} 10. O-O {[%clk 0:02:52]}  b5 {[%clk 0:02:41]} 11. Rac1 {[%clk 0:02:50]}  b4 {[%clk 0:02:35]} 12. Nd5 {[%clk 0:02:48]}  e6 {[%clk 0:02:34]} 13. Bxd6 {[%clk 0:02:43]}  exd5 {[%clk 0:02:34]} 14. cxd5 {[%clk 0:02:42]}  Nd4 {[%clk 0:02:11]} 15. Qe3+ {[%clk 0:02:02]}  Ne7 {[%clk 0:02:10]} 16. Nxd4 {[%clk 0:01:45]}  Bxd4 {[%clk 0:01:50]} 17. Qf4 {[%clk 0:01:38]}  Rb6 {[%clk 0:01:46]} 18. Rxc5 {[%clk 0:01:26]}  Bxc5 {[%clk 0:01:39]} 19. Bxc5 {[%clk 0:01:26]}  O-O {[%clk 0:01:32]} 20. e4 {[%clk 0:01:18]}  Bb5 {[%clk 0:01:25]} 21. Rd1 {[%clk 0:01:11]}  Kh7 {[%clk 0:01:15]} 22. Be3 {[%clk 0:01:06]}  Ng8 {[%clk 0:01:13]} 23. Bd4 {[%clk 0:00:59]}  f6 {[%clk 0:01:02]} 24. g4 {[%clk 0:00:56]}  Qd6 {[%clk 0:00:58]} 25. Qe3 {[%clk 0:00:52]}  Rbb8 {[%clk 0:00:52]} 26. gxh5 {[%clk 0:00:51]}  gxh5 {[%clk 0:00:50]} 27. Bf3 {[%clk 0:00:49]}  Nh6 {[%clk 0:00:49]} 28. Bxh5 {[%clk 0:00:46]}  Rg8+ {[%clk 0:00:47]} 29. Kh1 {[%clk 0:00:45]}  Ng4 {[%clk 0:00:46]} 30. Bxg4 {[%clk 0:00:42]}  Rxg4 {[%clk 0:00:47]} 31. Qh3 {[%clk 0:00:38]}  Rbg8 {[%clk 0:00:44]} 32. Be3 {[%clk 0:00:27]}  Bd7 {[%clk 0:00:41]} 33. Qh2 {[%clk 0:00:25]}  Qxh2+ {[%clk 0:00:39]} 34. Kxh2 {[%clk 0:00:25]}  Rxh4# {[%clk 0:00:39]} 0-1

[Event "December 5 Early 2023"]
[Site "https://www.chess.com"]
[Date "2023.12.05"]
[Round "9"]
[White "Shuvalov, Evgenij"]
[Black "Liu, Casper"]
[Result "1-0"]
[Board "90"]
[TimeControl "180+1"]
[WhiteFideId "4187237"]
[BlackFideId "1454153"]
[WhiteElo "2554"]
[BlackElo "2449"]
[WhiteTeam "FID"]
[BlackTeam "DEN"]
[WhiteClock "0:00:08"]
[BlackClock "0:00:00"]

1. d4 {[%clk 0:03:00]}  Nf6 {[%clk 0:02:59]} 2. c4 {[%clk 0:03:00]}  g6 {[%clk 0:02:59]} 3. Nc3 {[%clk 0:03:00]}  Bg7 {[%clk 0:02:59]} 4. e4 {[%clk 0:03:00]}  O-O {[%clk 0:03:00]} 5. Nf3 {[%clk 0:03:00]}  d6 {[%clk 0:03:00]} 6. Be2 {[%clk 0:03:01]}  Bg4 {[%clk 0:03:01]} 7. Be3 {[%clk 0:02:59]}  e5 {[%clk 0:02:59]} 8. d5 {[%clk 0:02:58]}  Nbd7 {[%clk 0:02:57]} 9. h3 {[%clk 0:02:54]}  Bxf3 {[%clk 0:02:58]} 10. Bxf3 {[%clk 0:02:54]}  a6 {[%clk 0:02:56]} 11. g4 {[%clk 0:02:53]}  Ne8 {[%clk 0:02:54]} 12. h4 {[%clk 0:02:42]}  f5 {[%clk 0:02:51]} 13. gxf5 {[%clk 0:02:39]}  gxf5 {[%clk 0:02:52]} 14. exf5 {[%clk 0:02:39]}  Rxf5 {[%clk 0:02:51]} 15. Be4 {[%clk 0:02:37]}  Rf8 {[%clk 0:02:50]} 16. Bg5 {[%clk 0:02:36]}  Nef6 {[%clk 0:02:46]} 17. Bf5 {[%clk 0:02:35]}  Qe8 {[%clk 0:02:40]} 18. Rg1 {[%clk 0:02:32]}  Kh8 {[%clk 0:02:40]} 19. Qe2 {[%clk 0:02:30]}  Nc5 {[%clk 0:02:26]} 20. O-O-O {[%clk 0:02:23]}  b5 {[%clk 0:01:58]} 21. b4 {[%clk 0:02:16]}  Na4 {[%clk 0:01:50]} 22. Nxa4 {[%clk 0:02:15]}  bxa4 {[%clk 0:01:51]} 23. a3 {[%clk 0:02:06]}  Nxd5 {[%clk 0:01:49]} 24. Qd3 {[%clk 0:01:53]}  Nc3 {[%clk 0:01:42]} 25. Qxc3 {[%clk 0:01:40]}  e4 {[%clk 0:01:39]} 26. Bd2 {[%clk 0:00:54]}  Be5 {[%clk 0:01:16]} 27. Bxe4 {[%clk 0:00:47]}  Rb8 {[%clk 0:01:05]} 28. Bd5 {[%clk 0:00:43]}  c6 {[%clk 0:00:52]} 29. Be4 {[%clk 0:00:26]}  d5 {[%clk 0:00:49]} 30. Bc2 {[%clk 0:00:20]}  d4 {[%clk 0:00:16]} 31. Qd3 {[%clk 0:00:20]}  Qf7 {[%clk 0:00:12]} 32. f4 {[%clk 0:00:19]}  Bf6 {[%clk 0:00:12]} 33. Rg5 {[%clk 0:00:18]}  c5 {[%clk 0:00:11]} 34. Rxc5 {[%clk 0:00:17]}  Rfc8 {[%clk 0:00:09]} 35. Rxc8+ {[%clk 0:00:13]}  Rxc8 {[%clk 0:00:10]} 36. c5 {[%clk 0:00:14]}  Rc7 {[%clk 0:00:09]} 37. Re1 {[%clk 0:00:13]}  Kg8 {[%clk 0:00:04]} 38. Kb1 {[%clk 0:00:11]}  Re7 {[%clk 0:00:04]} 39. Rg1+ {[%clk 0:00:11]}  Kh8 {[%clk 0:00:03]} 40. Kb2 {[%clk 0:00:08]}  Bxh4 {[%clk 0:00:03]} 41. Bxa4 {[%clk 0:00:07]}  Bf6 {[%clk 0:00:02]} 42. Bb3 {[%clk 0:00:07]}  Qe8 {[%clk 0:00:01]} 43. Rg8+ {[%clk 0:00:07]}  Qxg8 {[%clk 0:00:02]} 44. Bxg8 {[%clk 0:00:07]}  Kxg8 {[%clk 0:00:02]} 45. Kb3 {[%clk 0:00:08]}  Rg7 {[%clk 0:00:03]} 46. Qf5 {[%clk 0:00:08]}  Rf7 {[%clk 0:00:02]} 47. Qe6 {[%clk 0:00:08]}  Kg7 {[%clk 0:00:00]} 48. f5 {[%clk 0:00:08]} 1-0

[Event "December 5 Early 2023"]
[Site "https://www.chess.com"]
[Date "2023.12.05"]
[Round "9"]
[White "Kazmaier, Daniel"]
[Black "Erzhanov, Arman"]
[Result "1/2-1/2"]
[Board "91"]
[TimeControl "180+1"]
[WhiteFideId "2606089"]
[BlackFideId "4138821"]
[WhiteElo "2449"]
[BlackElo "2550"]
[WhiteTeam "CAN"]
[BlackTeam "KAZ"]
[WhiteClock "0:00:29"]
[BlackClock "0:00:49"]

1. d4 {[%clk 0:03:00]}  d6 {[%clk 0:01:55]} 2. Nf3 {[%clk 0:02:58]}  Bg4 {[%clk 0:01:53]} 3. Nbd2 {[%clk 0:02:57]}  Nf6 {[%clk 0:01:52]} 4. h3 {[%clk 0:02:56]}  Bf5 {[%clk 0:01:52]} 5. g4 {[%clk 0:02:53]}  Bg6 {[%clk 0:01:52]} 6. Nh4 {[%clk 0:02:53]}  c6 {[%clk 0:01:52]} 7. Nxg6 {[%clk 0:02:51]}  hxg6 {[%clk 0:01:53]} 8. e4 {[%clk 0:02:51]}  e5 {[%clk 0:01:53]} 9. c3 {[%clk 0:02:47]}  Nbd7 {[%clk 0:01:53]} 10. Bg2 {[%clk 0:02:45]}  Be7 {[%clk 0:01:53]} 11. O-O {[%clk 0:02:45]}  Nh7 {[%clk 0:01:53]} 12. Nc4 {[%clk 0:02:37]}  Qc7 {[%clk 0:01:52]} 13. f4 {[%clk 0:02:36]}  exf4 {[%clk 0:01:52]} 14. Bxf4 {[%clk 0:02:35]}  b5 {[%clk 0:01:52]} 15. Ne3 {[%clk 0:02:26]}  O-O {[%clk 0:01:52]} 16. a4 {[%clk 0:02:18]}  a6 {[%clk 0:01:50]} 17. axb5 {[%clk 0:02:18]}  axb5 {[%clk 0:01:51]} 18. Qe2 {[%clk 0:02:08]}  Rfe8 {[%clk 0:01:44]} 19. b4 {[%clk 0:01:46]}  Bf8 {[%clk 0:01:43]} 20. Qf2 {[%clk 0:01:35]}  Ndf6 {[%clk 0:01:36]} 21. e5 {[%clk 0:01:28]}  dxe5 {[%clk 0:01:36]} 22. dxe5 {[%clk 0:01:27]}  Rxa1 {[%clk 0:01:32]} 23. Rxa1 {[%clk 0:01:23]}  Rxe5 {[%clk 0:01:28]} 24. Bxc6 {[%clk 0:01:08]}  Bd6 {[%clk 0:01:18]} 25. Bxe5 {[%clk 0:01:06]}  Bxe5 {[%clk 0:01:19]} 26. Ra8+ {[%clk 0:00:56]}  Nf8 {[%clk 0:01:19]} 27. Nd5 {[%clk 0:00:56]}  Nxd5 {[%clk 0:01:18]} 28. Bxd5 {[%clk 0:00:56]}  Bf6 {[%clk 0:01:06]} 29. Qf3 {[%clk 0:00:38]}  Qe5 {[%clk 0:00:59]} 30. Ra5 {[%clk 0:00:31]}  Qe1+ {[%clk 0:00:58]} 31. Kg2 {[%clk 0:00:29]}  Qd2+ {[%clk 0:00:53]} 32. Kf1 {[%clk 0:00:29]}  Qc1+ {[%clk 0:00:49]} 33. Ke2 {[%clk 0:00:28]}  Qc2+ {[%clk 0:00:49]} 34. Kf1 {[%clk 0:00:28]}  Qc1+ {[%clk 0:00:48]} 35. Kg2 {[%clk 0:00:28]}  Qd2+ {[%clk 0:00:49]} 36. Kf1 {[%clk 0:00:29]}  Qc1+ {[%clk 0:00:49]} 1/2-1/2

[Event "December 5 Early 2023"]
[Site "https://www.chess.com"]
[Date "2023.12.05"]
[Round "9"]
[White "Swicarz, Maciej"]
[Black "Vakhidov, Shahzod"]
[Result "1-0"]
[Board "93"]
[TimeControl "180+1"]
[WhiteFideId "1113585"]
[BlackFideId "14205270"]
[WhiteElo "2445"]
[BlackElo "2541"]
[WhiteTeam "POL"]
[BlackTeam "UZB"]
[WhiteClock "0:00:47"]
[BlackClock "0:00:00"]

1. e4 {[%clk 0:03:00]}  c5 {[%clk 0:03:00]} 2. Nf3 {[%clk 0:02:59]}  g6 {[%clk 0:03:00]} 3. d4 {[%clk 0:02:57]}  cxd4 {[%clk 0:03:01]} 4. Nxd4 {[%clk 0:02:58]}  Bg7 {[%clk 0:03:01]} 5. c4 {[%clk 0:02:58]}  Nc6 {[%clk 0:03:01]} 6. Be3 {[%clk 0:02:56]}  Nf6 {[%clk 0:03:01]} 7. Nc3 {[%clk 0:02:55]}  O-O {[%clk 0:03:02]} 8. Be2 {[%clk 0:02:55]}  d6 {[%clk 0:03:02]} 9. O-O {[%clk 0:02:55]}  Bd7 {[%clk 0:03:02]} 10. Nc2 {[%clk 0:02:54]}  Rc8 {[%clk 0:03:00]} 11. Rc1 {[%clk 0:02:52]}  a6 {[%clk 0:02:59]} 12. Qd2 {[%clk 0:02:50]}  Ne5 {[%clk 0:02:51]} 13. b3 {[%clk 0:02:48]}  b5 {[%clk 0:02:29]} 14. cxb5 {[%clk 0:02:44]}  axb5 {[%clk 0:02:25]} 15. f3 {[%clk 0:02:27]}  Qa5 {[%clk 0:01:58]} 16. Nd5 {[%clk 0:02:22]}  Qd8 {[%clk 0:01:16]} 17. Bb6 {[%clk 0:02:22]}  Qe8 {[%clk 0:01:14]} 18. Nc7 {[%clk 0:02:21]}  Qd8 {[%clk 0:01:13]} 19. Nb4 {[%clk 0:02:14]}  Rb8 {[%clk 0:01:07]} 20. Ba5 {[%clk 0:02:07]}  Ne8 {[%clk 0:00:51]} 21. Nba6 {[%clk 0:02:04]}  Rb7 {[%clk 0:00:37]} 22. Nd5 {[%clk 0:01:53]}  Qa8 {[%clk 0:00:33]} 23. Nxe7+ {[%clk 0:01:47]}  Kh8 {[%clk 0:00:34]} 24. Nc7 {[%clk 0:01:43]}  Nxc7 {[%clk 0:00:30]} 25. Bxc7 {[%clk 0:01:20]}  Qa7+ {[%clk 0:00:18]} 26. Kh1 {[%clk 0:01:19]}  Rxc7 {[%clk 0:00:18]} 27. Qxd6 {[%clk 0:01:17]}  Rxc1 {[%clk 0:00:15]} 28. Rxc1 {[%clk 0:01:18]}  Qxa2 {[%clk 0:00:14]} 29. Qd1 {[%clk 0:01:11]}  Be6 {[%clk 0:00:14]} 30. Nd5 {[%clk 0:01:02]}  Qa3 {[%clk 0:00:08]} 31. Bxb5 {[%clk 0:01:00]}  Rb8 {[%clk 0:00:08]} 32. Bc4 {[%clk 0:00:59]}  h5 {[%clk 0:00:08]} 33. h3 {[%clk 0:00:57]}  Nxc4 {[%clk 0:00:09]} 34. bxc4 {[%clk 0:00:57]}  Bb2 {[%clk 0:00:09]} 35. Rb1 {[%clk 0:00:56]}  Be5 {[%clk 0:00:08]} 36. Rxb8+ {[%clk 0:00:53]}  Bxb8 {[%clk 0:00:09]} 37. Qd4+ {[%clk 0:00:51]}  Kg8 {[%clk 0:00:07]} 38. Nf6+ {[%clk 0:00:51]}  Kf8 {[%clk 0:00:03]} 39. Qd8+ {[%clk 0:00:50]}  Kg7 {[%clk 0:00:04]} 40. Ne8+ {[%clk 0:00:50]}  Kh7 {[%clk 0:00:04]} 41. Qxb8 {[%clk 0:00:50]}  Qc1+ {[%clk 0:00:04]} 42. Kh2 {[%clk 0:00:50]}  Qxc4 {[%clk 0:00:04]} 43. Qe5 {[%clk 0:00:47]}  Qe2 {[%clk 0:00:00]} 44. Nf6+ {[%clk 0:00:47]} 1-0